fUST/lending_fUST_20250302
["ID","MTS","AMOUNT","RATE_DAILY","PERIOD"]
[355091040,1740888651057,-500.0,0.00024686,2]
[355091041,1740888651068,-500.0,0.00024686,2]
[355091042,1740888651078,-500.0,0.00024686,2]
[355091043,1740888651088,-500.0,0.00024686,2]
[355091044,1740888651097,-500.0,0.00024686,2]
[355091045,1740888651107,-540.37,0.00024686,2]
[355091046,1740888651116,-500.0,0.00024686,2]
[355091047,1740888651126,-203.81698767,0.000247,3]
[355091048,1740888651136,-398.24,0.00024787,2]
[355091049,1740888651146,-501.11,0.00024787,2]
[355091050,1740888651156,-527.77,0.00024787,2]
[355091051,1740888651166,-500.0,0.00024787,2]
[355091052,1740888651176,-327.14,0.00024787,2]
[355091053,1740888651186,-500.0,0.00024787,2]
[355091054,1740888651196,-449.16,0.00024789,2]
[355091055,1740888651205,-594.06045621,0.00024789,2]
[355091056,1740888651215,-500.0,0.00024789,2]
[355091057,1740888651225,-500.0,0.00024789,2]
[355091058,1740888651235,-151.0,0.000249,9]
[355091059,1740888651244,-500.0,0.00024955,2]
[355091060,1740888651255,-1025.66,0.00024955,2]
[355091061,1740888651265,-500.0,0.00024955,2]
[355091062,1740888651274,-500.0,0.00024955,2]
[355091063,1740888651285,-525.58,0.00024955,2]
[355091064,1740888651296,-500.0,0.00024955,2]
[355091065,1740888651306,-1638.19,0.00024955,2]
[355091066,1740888651315,-500.0,0.00024955,2]
[355091067,1740888651324,-1982.43,0.00024955,2]
[355091068,1740888651334,-573.94,0.00024955,2]
[355091069,1740888651344,-287.48,0.00024955,2]
[355091070,1740888651354,-560.23,0.00024955,2]
[355091071,1740888651364,-1689.14,0.00024955,2]
[355091072,1740888651373,-1352.81,0.00024955,2]
[355091073,1740888651383,-953.11,0.00024955,2]
[355091074,1740888651393,-500.0,0.00024955,2]
[355091075,1740888651403,-500.0,0.00024955,2]
[355091076,1740888651413,-500.0,0.00024955,2]
[355091077,1740888651423,-579.91,0.00024955,2]
[355091078,1740888651432,-500.0,0.00024955,2]
[355091079,1740888651441,-500.0,0.00024955,2]
[355091080,1740888651452,-500.0,0.00024955,2]
[355091081,1740888651461,-1516.59,0.00024955,2]
[355091082,1740888651472,-500.0,0.00024955,2]
[355091083,1740888651482,-507.51,0.00024955,2]
[355091084,1740888651491,-858.99,0.00024955,2]
[355091085,1740888651501,-3444.39,0.00024955,2]
[355091086,1740888651511,-2281.9,0.00024955,2]
[355091087,1740888651521,-500.0,0.00024955,2]
[355091088,1740888651532,-500.0,0.00024955,2]
[355091089,1740888651541,-500.0,0.00024955,2]
[355091090,1740888651552,-1630.25,0.00024955,2]
[355091091,1740888651561,-500.0,0.00024955,2]
[355091092,1740888651571,-911.84,0.00024955,2]
[355091093,1740888651581,-500.0,0.00024955,2]
[355091094,1740888651591,-3860.43,0.00024955,2]
[355091095,1740888651600,-2721.24,0.00024955,2]
[355091096,1740888651611,-1106.3,0.00024955,2]
[355091097,1740888651620,-1181.87,0.00024955,2]
[355091098,1740888651630,-500.0,0.00024955,2]
[355091099,1740888651640,-500.0,0.00024956,2]
[355091100,1740888651649,-500.0,0.00024956,2]
[355091101,1740888651659,-500.0,0.00024956,2]
[355091102,1740888651669,-500.0,0.00024956,2]
[355091103,1740888651680,-23508.95,0.00024956,2]
[355091104,1740888651690,-536.31,0.00024956,2]
[355091105,1740888651700,-500.0,0.00024956,2]
[355091106,1740888651711,-690.48,0.00024956,2]
[355091107,1740888651721,-500.0,0.00024956,2]
[355091108,1740888651730,-500.0,0.00024956,2]
[355091109,1740888651740,-500.0,0.0002496,2]
[355091110,1740888651750,-500.0,0.0002496,2]
[355091111,1740888651760,-500.0,0.0002496,2]
[355091112,1740888651769,-500.0,0.0002496,2]
[355091113,1740888651779,-500.0,0.0002496,2]
[355091114,1740888651789,-500.0,0.0002496,2]
[355091115,1740888651799,-659.33,0.0002496,2]
[355091116,1740888651809,-500.0,0.0002496,2]
[355091117,1740888651819,-228.57,0.0002496,2]
[355091118,1740888651828,-500.0,0.0002496,2]
[355091119,1740888651838,-500.0,0.0002496,2]
[355091120,1740888651848,-500.0,0.0002496,2]
[355091121,1740888651858,-500.0,0.0002496,2]
[355091122,1740888651867,-500.0,0.0002496,2]
[355091123,1740888651878,-500.0,0.0002496,2]
[355091124,1740888651888,-583.48,0.0002496,2]
[355091125,1740888651898,-500.0,0.0002496,2]
[355091126,1740888651908,-500.0,0.0002496,2]
[355091127,1740888651917,-186.04,0.0002496,2]
[355091128,1740888651927,-500.0,0.0002496,2]
[355091129,1740888651937,-500.0,0.0002496,2]
[355091130,1740888651948,-604.28,0.0002496,2]
[355091131,1740888651959,-172.66,0.0002496,2]
[355091132,1740888651969,-860.01,0.0002496,2]
[355091133,1740888651979,-500.0,0.0002496,2]
[355091134,1740888651988,-547.74,0.0002496,2]
[355091135,1740888651998,-500.0,0.0002496,2]
[355091136,1740888652009,-637.26,0.0002496,2]
[355091137,1740888652021,-500.0,0.0002496,2]
[355091138,1740888652032,-500.0,0.0002496,2]
[355091139,1740888652042,-500.0,0.0002496,2]
[355091140,1740888652052,-500.0,0.0002496,2]
[355091141,1740888652062,-508.32,0.0002496,2]
[355091142,1740888652072,-688.29,0.0002496,2]
[355091143,1740888652082,-614.7,0.0002496,2]
[355091144,1740888652093,-500.0,0.0002496,2]
[355091145,1740888652103,-500.0,0.0002496,2]
[355091146,1740888652113,-598.59,0.0002496,2]
[355091147,1740888652123,-500.0,0.0002496,2]
[355091148,1740888652133,-500.0,0.0002496,2]
[355091149,1740888652142,-902.77,0.0002496,2]
[355091150,1740888652153,-500.0,0.0002496,2]
[355091151,1740888652163,-500.0,0.0002496,2]
[355091152,1740888652173,-500.0,0.0002496,2]
[355091153,1740888652183,-271.02,0.0002496,2]
[355091154,1740888652193,-500.0,0.0002496,2]
[355091155,1740888652203,-500.0,0.0002496,2]
[355091156,1740888652213,-540.37,0.0002496,2]
[355091157,1740888652223,-500.0,0.0002496,2]
[355091158,1740888652233,-160.0,0.00025,30]
[355091159,1740888652243,-501.11,0.00025061,2]
[355091160,1740888652253,-527.77,0.00025061,2]
[355091161,1740888652262,-500.0,0.00025061,2]
[355091162,1740888652272,-500.0,0.00025061,2]
[355091163,1740888652282,-500.0,0.00025063,2]
[355091164,1740888652292,-500.0,0.00025063,2]
[355091165,1740888652302,-151.0,0.000251,18]
[355091166,1740888652312,-500.0,0.00025229,2]
[355091167,1740888652322,-1025.66,0.00025229,2]
[355091168,1740888652331,-500.0,0.00025229,2]
[355091169,1740888652341,-500.0,0.00025229,2]
[355091170,1740888652351,-525.58,0.00025229,2]
[355091171,1740888652363,-500.0,0.00025229,2]
[355091172,1740888652373,-1638.19,0.00025229,2]
[355091173,1740888652383,-500.0,0.00025229,2]
[355091174,1740888652393,-1982.43,0.00025229,2]
[355091175,1740888652403,-573.94,0.00025229,2]
[355091176,1740888652413,-560.23,0.00025229,2]
[355091177,1740888652423,-1689.14,0.00025229,2]
[355091178,1740888652433,-1352.81,0.00025229,2]
[355091179,1740888652443,-953.11,0.00025229,2]
[355091180,1740888652454,-500.0,0.00025229,2]
[355091181,1740888652463,-199.96,0.00025229,2]
[355091182,1740888652474,-500.0,0.00025229,2]
[355091183,1740888652484,-579.91,0.00025229,2]
[355091184,1740888652494,-500.0,0.00025229,2]
[355091185,1740888652504,-500.0,0.00025229,2]
[355091186,1740888652514,-500.0,0.00025229,2]
[355091187,1740888652525,-1516.59,0.00025229,2]
[355091188,1740888652536,-500.0,0.00025229,2]
[355091189,1740888652780,-507.51,0.00025229,2]
[355091190,1740888652792,-858.99,0.00025229,2]
[355091191,1740888652803,-3444.39,0.00025229,2]
[355091192,1740888652812,-2281.9,0.00025229,2]
[355091193,1740888652822,-500.0,0.00025229,2]
[355091194,1740888652831,-601.21,0.00025229,2]
[355091195,1740888652841,-500.0,0.00025229,2]
[355091196,1740888652850,-1630.25,0.00025229,2]
[355091197,1740888652860,-500.0,0.00025229,2]
[355091198,1740888652870,-911.84,0.00025229,2]
[355091199,1740888652880,-500.0,0.00025229,2]
[355091200,1740888652889,-3860.43,0.00025229,2]
[355091201,1740888652899,-2721.24,0.00025229,2]
[355091202,1740888652908,-1106.3,0.00025229,2]
[355091203,1740888652918,-1181.87,0.00025229,2]
[355091204,1740888652927,-500.0,0.00025229,2]
[355091205,1740888652937,-500.0,0.0002523,2]
[355091206,1740888652950,-500.0,0.0002523,2]
[355091207,1740888652959,-500.0,0.0002523,2]
[355091208,1740888652969,-500.0,0.0002523,2]
[355091209,1740888652979,-23508.95,0.0002523,2]
[355091210,1740888652989,-536.31,0.0002523,2]
[355091211,1740888652999,-500.0,0.0002523,2]
[355091212,1740888653009,-690.48,0.0002523,2]
[355091213,1740888653020,-500.0,0.0002523,2]
[355091214,1740888653031,-500.0,0.0002523,2]
[355091215,1740888653042,-500.0,0.00025234,2]
[355091216,1740888653053,-606.46,0.00025234,2]
[355091217,1740888653064,-500.0,0.00025234,2]
[355091218,1740888653074,-500.0,0.00025234,2]
[355091219,1740888653084,-500.0,0.00025234,2]
[355091220,1740888653094,-500.0,0.00025234,2]
[355091221,1740888653103,-659.33,0.00025234,2]
[355091222,1740888653114,-500.0,0.00025234,2]
[355091223,1740888653123,-500.0,0.00025234,2]
[355091224,1740888653134,-519.7,0.00025234,2]
[355091225,1740888653143,-500.0,0.00025234,2]
[355091226,1740888653154,-500.0,0.00025234,2]
[355091227,1740888653163,-249.94,0.00025234,2]
[355091228,1740888653173,-500.0,0.00025234,2]
[355091229,1740888653183,-583.48,0.00025234,2]
[355091230,1740888653192,-500.0,0.00025234,2]
[355091231,1740888653203,-500.0,0.00025234,2]
[355091232,1740888653212,-500.0,0.00025234,2]
[355091233,1740888653222,-500.0,0.00025234,2]
[355091234,1740888653231,-860.01,0.00025234,2]
[355091235,1740888653241,-503.94685675,0.00025234,2]
[355091236,1740888653251,-547.74,0.00025234,2]
[355091237,1740888653261,-500.0,0.00025234,2]
[355091238,1740888653272,-367.66,0.00025234,2]
[355091239,1740888653282,-500.0,0.00025234,2]
[355091240,1740888653292,-500.0,0.00025234,2]
[355091241,1740888653302,-500.0,0.00025234,2]
[355091242,1740888653312,-688.29,0.00025234,2]
[355091243,1740888653323,-500.0,0.00025234,2]
[355091244,1740888653333,-500.0,0.00025234,2]
[355091245,1740888653343,-598.59,0.00025234,2]
[355091246,1740888653355,-500.0,0.00025234,2]
[355091247,1740888653364,-430.48,0.00025234,2]
[355091248,1740888653374,-902.77,0.00025234,2]
[355091249,1740888653384,-186.64,0.00025234,2]
[355091250,1740888653394,-500.0,0.00025234,2]
[355091251,1740888653404,-500.0,0.00025234,2]
[355091252,1740888653415,-500.0,0.00025234,2]
[355091253,1740888653424,-500.0,0.00025234,2]
[355091254,1740888653435,-540.37,0.00025234,2]
[355091255,1740888653444,-500.0,0.00025234,2]
[355091256,1740888653454,-420.0,0.00025288,2]
[355091257,1740888653465,-501.11,0.00025335,2]
[355091258,1740888653474,-527.77,0.00025335,2]
[355091259,1740888653483,-330.76,0.00025335,2]
[355091260,1740888653493,-500.0,0.00025335,2]
[355091261,1740888653503,-500.0,0.00025337,2]
[355091262,1740888653513,-438.03236853,0.00025337,2]
[355091263,1740888653523,-203.81698758,0.00025376,4]
[355091264,1740888653532,-160.0,0.00025395,3]
[355091265,1740888653542,-3000.0,0.00025502,7]
[355091266,1740888653552,-500.0,0.00025503,2]
[355091267,1740888653561,-1025.66,0.00025503,2]
[355091268,1740888653571,-500.0,0.00025503,2]
[355091269,1740888653580,-500.0,0.00025503,2]
[355091270,1740888653591,-525.58,0.00025503,2]
[355091271,1740888653600,-500.0,0.00025503,2]
[355091272,1740888653610,-1638.19,0.00025503,2]
[355091273,1740888653620,-500.0,0.00025503,2]
[355091274,1740888653629,-1982.43,0.00025503,2]
[355091275,1740888653639,-573.94,0.00025503,2]
[355091276,1740888653649,-560.23,0.00025503,2]
[355091277,1740888653659,-1689.14,0.00025503,2]
[355091278,1740888653668,-1352.81,0.00025503,2]
[355091279,1740888653678,-953.11,0.00025503,2]
[355091280,1740888653687,-500.0,0.00025503,2]
[355091281,1740888653697,-500.0,0.00025503,2]
[355091282,1740888653707,-579.91,0.00025503,2]
[355091283,1740888653716,-500.0,0.00025503,2]
[355091284,1740888653726,-612.44,0.00025503,2]
[355091285,1740888653736,-500.0,0.00025503,2]
[355091286,1740888653746,-1516.59,0.00025503,2]
[355091287,1740888653756,-479.93189267,0.00025503,2]
[355091288,1740888653766,-507.51,0.00025503,2]
[355091289,1740888653775,-858.99,0.00025503,2]
[355091290,1740888653787,-3444.39,0.00025503,2]
[355091291,1740888653796,-2281.9,0.00025503,2]
[355091292,1740888653807,-500.0,0.00025503,2]
[355091293,1740888653816,-500.0,0.00025503,2]
[355091294,1740888653826,-1630.25,0.00025503,2]
[355091295,1740888653836,-500.0,0.00025503,2]
[355091296,1740888653847,-911.84,0.00025503,2]
[355091297,1740888653856,-500.0,0.00025503,2]
[355091298,1740888653866,-3860.43,0.00025503,2]
[355091299,1740888653876,-2721.24,0.00025503,2]
[355091300,1740888653885,-1106.3,0.00025503,2]
[355091301,1740888653895,-1181.87,0.00025503,2]
[355091302,1740888653904,-500.0,0.00025503,2]
[355091303,1740888653915,-160.0,0.00025504,2]
[355091304,1740888653928,-19629.85965445,0.00025504,2]
[355091305,1740888653942,-160.0,0.00025504,2]
[355091306,1740888653957,-160.0,0.00025504,2]
[355091307,1740888653968,-500.0,0.00025504,2]
[355091308,1740888653979,-500.0,0.00025504,2]
[355091309,1740888653989,-500.0,0.00025504,2]
[355091310,1740888653999,-500.0,0.00025504,2]
[355091311,1740888654008,-23508.95,0.00025504,2]
[355091312,1740888654020,-536.31,0.00025504,2]
[355091313,1740888654030,-500.0,0.00025504,2]
[355091314,1740888654041,-690.48,0.00025504,2]
[355091315,1740888654050,-324.26775612,0.00025504,2]
[355091316,1740888654060,-500.0,0.00025508,2]
[355091317,1740888654070,-500.0,0.00025508,2]
[355091318,1740888654079,-500.0,0.00025508,2]
[355091319,1740888654089,-500.0,0.00025508,2]
[355091320,1740888654099,-500.0,0.00025508,2]
[355091321,1740888654108,-659.33,0.00025508,2]
[355091322,1740888654117,-500.0,0.00025508,2]
[355091323,1740888654128,-500.0,0.00025508,2]
[355091324,1740888654137,-500.0,0.00025508,2]
[355091325,1740888654147,-500.0,0.00025508,2]
[355091326,1740888654156,-500.0,0.00025508,2]
[355091327,1740888654165,-583.48,0.00025508,2]
[355091328,1740888654175,-500.0,0.00025508,2]
[355091329,1740888654183,-500.0,0.00025508,2]
[355091330,1740888654194,-500.0,0.00025508,2]
[355091331,1740888654203,-860.01,0.00025508,2]
[355091332,1740888654213,-547.74,0.00025508,2]
[355091333,1740888654222,-460.9745483,0.00025508,2]
[355091334,1740888654232,-500.0,0.00025508,2]
[355091335,1740888654242,-500.0,0.00025508,2]
[355091336,1740888654251,-500.0,0.00025508,2]
[355091337,1740888654262,-688.29,0.00025508,2]
[355091338,1740888654271,-500.0,0.00025508,2]
[355091339,1740888654281,-284.93,0.00025508,2]
[355091340,1740888654290,-598.59,0.00025508,2]
[355091341,1740888654300,-500.0,0.00025508,2]
[355091342,1740888654310,-902.77,0.00025508,2]
[355091343,1740888654320,-643.85,0.00025508,2]
[355091344,1740888654330,-500.0,0.00025508,2]
[355091345,1740888654339,-500.0,0.00025508,2]
[355091346,1740888654349,-500.0,0.00025508,2]
[355091347,1740888654359,-540.37,0.00025508,2]
[355091348,1740888654368,-500.0,0.00025508,2]
[355091349,1740888654378,-501.11,0.00025609,2]
[355091350,1740888654387,-527.77,0.00025609,2]
[355091351,1740888654397,-500.0,0.00025609,2]
[355091352,1740888654407,-500.0,0.00025611,2]
[355091353,1740888654416,-500.0,0.00025777,2]
[355091354,1740888654425,-1025.66,0.00025777,2]
[355091355,1740888654435,-500.0,0.00025777,2]
[355091356,1740888654444,-338.7,0.00025777,2]
[355091357,1740888654454,-525.58,0.00025777,2]
[355091358,1740888654464,-500.0,0.00025777,2]
[355091359,1740888654473,-1638.19,0.00025777,2]
[355091360,1740888654483,-500.0,0.00025777,2]
[355091361,1740888654493,-1982.43,0.00025777,2]
[355091362,1740888654503,-573.94,0.00025777,2]
[355091363,1740888654514,-560.23,0.00025777,2]
[355091364,1740888654523,-1689.14,0.00025777,2]
[355091365,1740888654533,-1352.81,0.00025777,2]
[355091366,1740888654542,-953.11,0.00025777,2]
[355091367,1740888654552,-500.0,0.00025777,2]
[355091368,1740888654561,-500.0,0.00025777,2]
[355091369,1740888654571,-579.91,0.00025777,2]
[355091370,1740888654581,-160.46,0.00025777,2]
[355091371,1740888654591,-601.36,0.00025777,2]
[355091372,1740888654602,-1516.59,0.00025777,2]
[355091373,1740888654611,-507.51,0.00025777,2]
[355091374,1740888654620,-858.99,0.00025777,2]
[355091375,1740888654630,-3444.39,0.00025777,2]
[355091376,1740888654640,-2281.9,0.00025777,2]
[355091377,1740888654650,-500.0,0.00025777,2]
[355091378,1740888654659,-500.0,0.00025777,2]
[355091379,1740888654669,-1630.25,0.00025777,2]
[355091380,1740888654678,-500.0,0.00025777,2]
[355091381,1740888654688,-911.84,0.00025777,2]
[355091382,1740888654698,-500.0,0.00025777,2]
[355091383,1740888654707,-3860.43,0.00025777,2]
[355091384,1740888654717,-2721.24,0.00025777,2]
[355091385,1740888654727,-1106.3,0.00025777,2]
[355091386,1740888654736,-1181.87,0.00025777,2]
[355091387,1740888654746,-500.0,0.00025777,2]
[355091388,1740888654756,-500.0,0.00025778,2]
[355091389,1740888654766,-500.0,0.00025778,2]
[355091390,1740888654775,-194.06002411,0.00025778,2]
[355091391,1740888654784,-515.18,0.00025778,2]
[355091392,1740888654794,-23508.95,0.00025778,2]
[355091393,1740888654804,-536.31,0.00025778,2]
[355091394,1740888654813,-500.0,0.00025778,2]
[355091395,1740888654823,-690.48,0.00025778,2]
[355091396,1740888654832,-500.0,0.00025782,2]
[355091397,1740888654842,-500.0,0.00025782,2]
[355091398,1740888654851,-500.0,0.00025782,2]
[355091399,1740888654860,-500.0,0.00025782,2]
[355091400,1740888654869,-500.0,0.00025782,2]
[355091401,1740888654879,-659.33,0.00025782,2]
[355091402,1740888654888,-500.0,0.00025782,2]
[355091403,1740888654898,-500.0,0.00025782,2]
[355091404,1740888654907,-500.0,0.00025782,2]
[355091405,1740888654917,-500.0,0.00025782,2]
[355091406,1740888654927,-500.0,0.00025782,2]
[355091407,1740888654936,-583.48,0.00025782,2]
[355091408,1740888654949,-500.0,0.00025782,2]
[355091409,1740888654959,-500.0,0.00025782,2]
[355091410,1740888654968,-500.0,0.00025782,2]
[355091411,1740888654978,-860.01,0.00025782,2]
[355091412,1740888654990,-547.74,0.00025782,2]
[355091413,1740888655000,-500.0,0.00025782,2]
[355091414,1740888655010,-500.0,0.00025782,2]
[355091415,1740888655022,-500.0,0.00025782,2]
[355091416,1740888655033,-688.29,0.00025782,2]
[355091417,1740888655043,-500.0,0.00025782,2]
[355091418,1740888655053,-598.59,0.00025782,2]
[355091419,1740888655063,-500.0,0.00025782,2]
[355091420,1740888655073,-902.77,0.00025782,2]
[355091421,1740888655083,-500.0,0.00025782,2]
[355091422,1740888655092,-533.91,0.00025782,2]
[355091423,1740888655102,-500.0,0.00025782,2]
[355091424,1740888655112,-540.37,0.00025782,2]
[355091425,1740888655123,-500.0,0.00025782,2]
[355091426,1740888655132,-167.90937271,0.00025808,2]
[355091427,1740888655142,-500.0,0.00025838,2]
[355091428,1740888655154,-500.0,0.00025838,2]
[355091429,1740888655163,-500.0,0.00025838,2]
[355091430,1740888655174,-500.0,0.00025838,2]
[355091431,1740888655184,-500.0,0.00025838,2]
[355091432,1740888655193,-594.58072211,0.00025841,2]
[355091433,1740888655203,-160.0,0.00025864,4]
[355091434,1740888655213,-501.11,0.00025883,2]
[355091435,1740888655223,-527.77,0.00025883,2]
[355091436,1740888655233,-500.0,0.00025883,2]
[355091437,1740888655241,-500.0,0.00025885,2]
[355091438,1740888655251,-5889.33243424,0.000259,2]
[355091439,1740888655261,-160.0,0.00026,3]
[355091440,1740888655271,-250.0,0.00026,30]
[355091441,1740888655280,-19629.85965445,0.00026,3]
[355091442,1740888655290,-19629.85965445,0.00026,3]
[355091443,1740888655299,-160.0,0.00026,3]
[355091444,1740888655309,-900.0,0.00026,10]
[355091445,1740888655319,-900.0,0.00026,10]
[355091446,1740888655329,-900.0,0.00026,10]
[355091447,1740888655339,-900.0,0.00026,10]
[355091448,1740888655349,-900.0,0.00026,10]
[355091449,1740888655358,-900.0,0.00026,10]
[355091450,1740888655369,-900.0,0.00026,10]
[355091451,1740888655379,-900.0,0.00026,10]
[355091452,1740888655389,-900.0,0.00026,10]
[355091453,1740888655399,-500.0,0.00026,10]
[355091454,1740888655409,-900.0,0.00026,10]
[355091455,1740888655419,-500.0,0.00026,10]
[355091456,1740888655428,-900.0,0.00026,10]
[355091457,1740888655439,-500.0,0.00026,10]
[355091458,1740888655451,-900.0,0.00026,10]
[355091459,1740888655465,-500.0,0.00026,10]
[355091460,1740888655479,-900.0,0.00026,10]
[355091461,1740888655493,-500.0,0.00026,10]
[355091462,1740888655506,-500.0,0.00026,10]
[355091463,1740888655518,-500.0,0.00026,10]
[355091464,1740888655529,-500.0,0.00026,10]
[355091465,1740888655541,-500.0,0.00026,10]
[355091466,1740888655553,-500.0,0.00026,10]
[355091467,1740888655567,-500.0,0.00026,10]
[355091468,1740888655580,-500.0,0.00026,10]
[355091469,1740888655592,-500.0,0.00026,10]
[355091470,1740888655604,-500.0,0.00026,10]
[355091471,1740888655617,-1200.0,0.00026,10]
[355091472,1740888655629,-1200.0,0.00026,10]
[355091473,1740888655643,-1200.0,0.00026,10]
[355091474,1740888655655,-1200.0,0.00026,10]
[355091475,1740888655668,-1200.0,0.00026,10]
[355091476,1740888655681,-1200.0,0.00026,10]
[355091477,1740888655693,-1200.0,0.00026,10]
[355091478,1740888655707,-1200.0,0.00026,10]
[355091479,1740888655720,-1200.0,0.00026,10]
[355091480,1740888655733,-1200.0,0.00026,10]
[355091481,1740888655745,-1200.0,0.00026,10]
[355091482,1740888655757,-1200.0,0.00026,10]
[355091483,1740888655771,-1200.0,0.00026,10]
[355091484,1740888655785,-1200.0,0.00026,10]
[355091485,1740888655798,-1200.0,0.00026,10]
[355091486,1740888655811,-160.0,0.00026,10]
[355091487,1740888655823,-19629.85965445,0.0002601,10]
[355091488,1740888655835,-160.0,0.0002601,10]
[355091489,1740888655850,-500.0,0.00026051,2]
[355091490,1740888655863,-1025.66,0.00026051,2]
[355091491,1740888655877,-500.0,0.00026051,2]
[355091492,1740888655890,-525.58,0.00026051,2]
[355091493,1740888655904,-500.0,0.00026051,2]
[355091494,1740888655917,-1638.19,0.00026051,2]
[355091495,1740888655928,-500.0,0.00026051,2]
[355091496,1740888655939,-1982.43,0.00026051,2]
[355091497,1740888655955,-573.94,0.00026051,2]
[355091498,1740888655967,-560.23,0.00026051,2]
[355091499,1740888655979,-1689.14,0.00026051,2]
[355091500,1740888655993,-1352.81,0.00026051,2]
[355091501,1740888656007,-953.11,0.00026051,2]
[355091502,1740888656020,-500.0,0.00026051,2]
[355091503,1740888656034,-500.0,0.00026051,2]
[355091504,1740888656050,-579.91,0.00026051,2]
[355091505,1740888656062,-1516.59,0.00026051,2]
[355091506,1740888656074,-507.51,0.00026051,2]
[355091507,1740888656087,-858.99,0.00026051,2]
[355091508,1740888656101,-3444.39,0.00026051,2]
[355091509,1740888656113,-2281.9,0.00026051,2]
[355091510,1740888656126,-500.0,0.00026051,2]
[355091511,1740888656139,-500.0,0.00026051,2]
[355091512,1740888656152,-1630.25,0.00026051,2]
[355091513,1740888656163,-500.0,0.00026051,2]
[355091514,1740888656174,-911.84,0.00026051,2]
[355091515,1740888656185,-500.0,0.00026051,2]
[355091516,1740888656195,-3860.43,0.00026051,2]
[355091517,1740888656206,-2721.24,0.00026051,2]
[355091518,1740888656218,-1106.3,0.00026051,2]
[355091519,1740888656229,-1181.87,0.00026051,2]
[355091520,1740888656241,-500.0,0.00026051,2]
[355091521,1740888656255,-500.0,0.00026052,2]
[355091522,1740888656267,-23508.95,0.00026052,2]
[355091523,1740888656280,-536.31,0.00026052,2]
[355091524,1740888656293,-500.0,0.00026052,2]
[355091525,1740888656303,-690.48,0.00026052,2]
[355091526,1740888656314,-273.10335634,0.00026056,2]
[355091527,1740888656326,-500.0,0.00026056,2]
[355091528,1740888656338,-500.0,0.00026056,2]
[355091529,1740888656349,-500.0,0.00026056,2]
[355091530,1740888656360,-500.0,0.00026056,2]
[355091531,1740888656374,-659.33,0.00026056,2]
[355091532,1740888656386,-500.0,0.00026056,2]
[355091533,1740888656398,-500.0,0.00026056,2]
[355091534,1740888656409,-500.0,0.00026056,2]
[355091535,1740888656421,-500.0,0.00026056,2]
[355091536,1740888656432,-599.78,0.00026056,2]
[355091537,1740888656444,-583.48,0.00026056,2]
[355091538,1740888656456,-500.0,0.00026056,2]
[355091539,1740888656467,-500.0,0.00026056,2]